fUST/lending_fUST_20251030
["ID","MTS","AMOUNT","RATE_DAILY","PERIOD"]
[392649474,1761772238247,-287.47335891,0.00035161,2]
[392649475,1761772238256,-287.47335891,0.00035173,2]
[392649476,1761772238265,-601.87,0.00035205,10]
[392649477,1761772238275,-151.0,0.00035213,2]
[392649478,1761772238284,-151.0,0.00035213,2]
[392649479,1761772238293,-151.0,0.00035213,2]
[392649481,1761772238302,-151.0,0.00035213,2]
[392649483,1761772238311,-151.0,0.00035213,2]
[392649484,1761772238320,-151.0,0.00035213,2]
[392649486,1761772238329,-151.0,0.00035213,2]
[392649487,1761772238337,-151.0,0.00035213,2]
[392649488,1761772238346,-151.0,0.00035213,2]
[392649489,1761772238355,-151.0,0.00035213,2]
[392649490,1761772238363,-151.0,0.00035213,2]
[392649491,1761772238372,-151.0,0.00035213,2]
[392649492,1761772238380,-151.0,0.00035213,2]
[392649493,1761772238389,-151.0,0.00035213,2]
[392649494,1761772238398,-151.0,0.00035213,2]
[392649495,1761772238407,-151.0,0.00035213,2]
[392649496,1761772238416,-151.0,0.00035213,2]
[392649497,1761772238425,-151.0,0.00035213,2]
[392649498,1761772238434,-151.0,0.00035213,2]
[392649499,1761772238443,-151.0,0.00035213,2]
[392649500,1761772238452,-500.0,0.00035213,7]
[392649501,1761772238462,-500.0,0.00035213,7]
[392649502,1761772238471,-500.0,0.00035213,7]
[392649503,1761772238480,-500.0,0.00035213,7]
[392649504,1761772238488,-500.0,0.00035213,7]
[392649505,1761772238497,-500.0,0.00035213,7]
[392649506,1761772238507,-500.0,0.00035213,7]
[392649507,1761772238515,-500.0,0.00035213,7]
[392649508,1761772238525,-178.22229361,0.00035213,7]
[392649509,1761772238534,-450.0,0.00035213,7]
[392649510,1761772238543,-16948.3150319,0.00035214,2]
[392649511,1761772238555,-12361.70361041,0.00035214,2]
[392649545,1761772243236,-66403.81019289,0.00035214,2]
[392649547,1761772243245,-315.0,0.00035221,2]
[392649549,1761772243254,-221.67,0.00035223,120]
[392649551,1761772243263,-162459.51980711,0.00035224,2]
[392649567,1761772246392,-267.91,0.00035214,3]
[392649568,1761772246401,-115.95937208,0.00035224,2]
[392649569,1761772246411,-2571.29047449,0.00035224,2]
[392649570,1761772246422,-3538.19455488,0.00035224,2]
[392649574,1761772260688,-150.0,0.0002589,2]
[392649575,1761772279438,567.0,0.00030136,120]
[392649594,1761773103509,659.7681363,0.00025205,2]
[392649599,1761773157098,-150.0,0.00025547,2]
[392649600,1761773157120,-177.0,0.00027547,2]
[392649601,1761773157139,-194.7751613,0.00028219,2]
[392649602,1761773157160,-204.0,0.00029547,2]
[392649603,1761773157181,-208.5565,0.0003,2]
[392649604,1761773157201,-380.0,0.00031068,2]
[392649605,1761773157221,-52.22773216,0.00031547,2]
[392649606,1761773227103,-150.0,0.0002589,2]
[392649607,1761773227123,-137.49894057,0.0002789,2]
[392649608,1761773234131,-39.50105943,0.0002789,2]
[392649609,1761773234150,-204.0,0.0002989,2]
[392649610,1761773234169,-218.23696633,0.0003189,2]
[392649618,1761773312972,1337.10576516,0.00015,2]
[392649619,1761773318918,213.83661205,0.00016,2]
[392649620,1761773321365,-7789.29948649,0.0003,20]
[392649621,1761773321621,-10000.01,0.0003,20]
[392649622,1761773321761,-10000.01,0.0003,20]
[392649623,1761773321923,-10000.01,0.0003,20]
[392649624,1761773322221,-10000.01,0.0003,20]
[392649625,1761773322329,-10000.01,0.0003,20]
[392649626,1761773322448,-10000.01,0.0003,20]
[392649627,1761773322565,-10000.01,0.0003,20]
[392649628,1761773322682,-10000.01,0.0003,20]
[392649629,1761773322822,-10000.01,0.0003,20]
[392649630,1761773324202,-10000.01,0.0003,20]
[392649632,1761773327453,-10000.01,0.0003,20]
[392649633,1761773327924,-10000.01,0.0003,20]
[392649634,1761773328049,-10000.01,0.0003,20]
[392649635,1761773328186,-10000.01,0.0003,20]
[392649636,1761773328361,-10000.01,0.0003,20]
[392649637,1761773328519,-10000.01,0.0003,20]
[392649638,1761773328681,-10000.01,0.0003,20]
[392649639,1761773328779,-10000.01,0.0003,20]
[392649640,1761773330246,-10000.01,0.0003,20]
[392649641,1761773351283,-10000.01,0.000299,2]
[392649642,1761773351418,-2899.50180308,0.000299,2]
[392649643,1761773351442,-4201.00639384,0.000299,2]
[392649644,1761773351566,-619.54,0.0002999,10]
[392649645,1761773351593,-815.54,0.0002999,10]
[392649646,1761773351620,-300.0,0.00029999,2]
[392649647,1761773351677,-6529.85,0.0003,20]
[392649648,1761773351700,-10000.01,0.0003,20]
[392649649,1761773351821,-10000.01,0.0003,20]
[392649650,1761773351930,-10000.01,0.0003,20]
[392649651,1761773352189,-10000.01,0.0003,20]
[392649652,1761773352312,-10000.01,0.0003,20]
[392649653,1761773357442,-679.62,0.0002999,10]
[392649654,1761773357475,-8640.77,0.0003,20]
[392649655,1761773363340,-10000.01,0.0003,20]
[392649656,1761773363462,-10000.01,0.0003,20]
[392649657,1761773363596,-10000.01,0.0003,20]
[392649658,1761773363731,-10000.01,0.0003,20]
[392649659,1761773364035,-10000.01,0.0003,20]
[392649660,1761773364141,-10000.01,0.0003,20]
[392649661,1761773364282,-10000.01,0.0003,20]
[392649662,1761773366372,-10000.01,0.0003,20]
[392649663,1761773366524,-10000.01,0.0003,20]
[392649668,1761773412605,-421.84304698,0.00024853,2]
[392649838,1761773438601,-1204.81766467,0.00024853,2]
[392649839,1761773438612,-5000.0,0.00024953,5]
[392649840,1761773438733,-1200.0,0.00026574,2]
[392649841,1761773438752,-150.0,0.00026611,30]
[392649842,1761773438762,-150.0,0.00029031,30]
[392649843,1761773438773,-300.0,0.00029795,2]
[392649844,1761773438784,-300.0,0.00029796,2]
[392649845,1761773438794,-182.0,0.00029796,2]
[392649846,1761773438803,-300.0,0.00029796,2]
[392649847,1761773438813,-5000.0,0.00029797,2]
[392649848,1761773438823,-162.12399676,0.000299,2]
[392649849,1761773438833,-338.67,0.0002999,10]
[392649850,1761773438842,-509.9,0.0002999,10]
[392649851,1761773438851,-500.0,0.00029999,2]
[392649852,1761773438860,-247.86010327,0.00029999,2]
[392649853,1761773438870,-289.75560553,0.00029999,2]
[392649854,1761773438881,-500.0,0.00029999,2]
[392649855,1761773438891,-500.0,0.00029999,2]
[392649856,1761773438904,-500.0,0.00029999,2]
[392649857,1761773438914,-500.0,0.00029999,2]
[392649858,1761773438923,-500.0,0.00029999,2]
[392649859,1761773438934,-22918.94195559,0.0003,20]
[392649860,1761773438947,-7325.99493946,0.0003,20]
[392649861,1761773438960,-22308.0,0.0003,20]
[392649866,1761773442054,-3e-08,0.00029999,2]
[392649956,1761773446454,-424.92,0.0002999,10]
[392649957,1761773446463,-499.99999997,0.00029999,2]
[392649958,1761773446472,-500.0,0.00029999,2]
[392649959,1761773446482,-500.0,0.00029999,2]
[392649960,1761773446491,-500.0,0.00029999,2]
[392649961,1761773446500,-500.0,0.00029999,2]
[392649962,1761773446509,-500.0,0.00029999,2]
[392649963,1761773446518,-500.0,0.00029999,2]
[392649964,1761773446527,-536.08948161,0.00029999,2]
[392649965,1761773446536,-606.31940991,0.00029999,2]
[392649966,1761773446545,-500.0,0.00029999,2]
[392649967,1761773446554,-492.0126711,0.00029999,2]
[392649968,1761773446563,-500.0,0.00029999,2]
[392649969,1761773446572,-364.43545798,0.00029999,2]
[392649970,1761773446580,-500.0,0.00029999,2]
[392649971,1761773446589,-500.0,0.00029999,2]
[392649972,1761773446598,-500.0,0.00029999,2]
[392649973,1761773446607,-500.0,0.00029999,2]
[392649974,1761773446616,-500.0,0.00029999,2]
[392649975,1761773446625,-500.0,0.00029999,2]
[392649976,1761773446634,-500.0,0.00029999,2]
[392649977,1761773446643,-500.0,0.00029999,2]
[392649978,1761773446653,-500.0,0.00029999,2]
[392649979,1761773446662,-500.0,0.00029999,2]
[392649980,1761773446671,-500.0,0.00029999,2]
[392649981,1761773446680,-500.0,0.00029999,2]
[392649982,1761773446689,-256.49042372,0.00029999,2]
[392649983,1761773446699,-500.0,0.00029999,2]
[392649984,1761773446708,-11184.95378973,0.0003,20]
[392649987,1761773564106,743.884117,0.00013699,2]
[392649988,1761773565807,-411.28443185,0.00020187,2]
[392649989,1761773568001,-192.87308503,0.00020187,2]
[392649995,1761773644456,5088.0,0.00019212,2]
[392649996,1761773646033,-242.50869833,0.00019986,2]
[392649997,1761773648903,-224.0385213,0.00019986,2]
[392649998,1761773653177,-372.32481373,0.00019986,2]
[392649999,1761773661391,-194.52940329,0.00019786,2]
[392650000,1761773662978,-156.05634976,0.00019786,2]
[392650002,1761773665922,-202.39586679,0.00019786,2]
[392650003,1761773667628,-189.37621848,0.00019786,2]
[392650004,1761773669331,-196.0,0.00019786,2]
[392650005,1761773675592,-4061.64216168,0.00019786,2]
[392650006,1761773675620,-428.09307269,0.00019986,2]
[392650007,1761773675646,-139.72660012,0.00020187,2]
[392650008,1761773675895,-351.66921926,0.00019886,2]
[392650009,1761773675923,-4296.67156148,0.00024456,2]
[392650010,1761773676059,-703.32843852,0.00024456,2]
[392650011,1761773676088,-300.0,0.00024702,2]
[392650012,1761773676120,-162.59990134,0.00024828,2]
[392650013,1761773676150,-743.884117,0.00026676,2]
[392650014,1761773676182,-420.0,0.00026769,2]
[392650015,1761773676210,-191.86788358,0.00026828,2]
[392650016,1761773676237,-1200.0,0.00027952,2]
[392650017,1761773676264,-999.0,0.00027953,2]
[392650018,1761773676548,-1000.0,0.00028057,30]
[392650019,1761773676575,-151.0,0.00028472,4]
[392650020,1761773676602,-221.13586582,0.00028828,2]
[392650021,1761773676630,-587.0,0.00029008,2]
[392650022,1761773676656,-162.92840672,0.00029354,2]
[392650023,1761773676684,-500.0,0.00029453,2]
[392650024,1761773676711,-500.0,0.00029453,2]
[392650025,1761773676739,-500.0,0.00029453,2]
[392650026,1761773676766,-500.0,0.00029453,2]
[392650027,1761773676795,-273.05995995,0.00029453,2]
[392650028,1761773676822,-468.00501382,0.00029453,2]
[392650029,1761773678514,-500.0,0.00029453,2]
[392650030,1761773678542,-566.0600248,0.00029453,2]
[392650031,1761773678570,-500.0,0.00029453,2]
[392650032,1761773678600,-600.92013658,0.00029453,2]
[392650033,1761773678629,-500.0,0.00029453,2]
[392650034,1761773678659,-500.0,0.00029453,2]
[392650035,1761773678688,-500.0,0.00029453,2]
[392650036,1761773678718,-500.0,0.00029453,2]
[392650037,1761773678745,-500.0,0.00029453,2]
[392650038,1761773678773,-166.04967724,0.00029453,2]
[392650039,1761773678875,-333.95032276,0.00029453,2]
[392650040,1761773678903,-500.0,0.00029453,2]
[392650041,1761773678933,-500.0,0.00029453,2]
[392650042,1761773679146,5000.0,0.00029158,2]
[392650043,1761773687956,981.22987168,0.00029454,2]
[392650044,1761773690597,-863.47820906,0.00029454,2]
[392650045,1761773690626,-10000.01,0.00029454,2]
[392650046,1761773696595,5000.0,0.00029159,2]
[392650047,1761773701498,300.0,0.00029453,2]
[392650048,1761773701945,300.0,0.00029453,2]
[392650049,1761773702084,300.0,0.00029453,2]
[392650050,1761773705800,4100.01,0.00029454,2]
[392650051,1761773705824,899.99,0.00029454,2]
[392650052,1761773710241,1200.0,0.00029453,2]
[392650053,1761773713261,300.0,0.00029453,2]
[392650054,1761773720853,150.0,0.0002648,30]
[392650055,1761773721300,150.0,0.00028887,30]
[392650056,1761773721351,1616.80648731,0.00029454,2]
[392650058,1761773926787,1362.62914429,0.00025205,2]
[392650059,1761773949986,166.54008823,0.00025205,2]
[392650061,1761774054431,-169.92070562,0.00025869,2]
[392650062,1761774054464,-150.0,0.00026414,30]
[392650063,1761774054495,-151.0,0.00027506,4]
[392650064,1761774054525,-200.50643263,0.00027869,2]
[392650065,1761774054553,-2069.579058,0.00028077,2]
[392650066,1761774054581,-151.0,0.00028486,4]
[392650067,1761774054615,-150.0,0.00028815,30]
[392650068,1761774054644,-151.0,0.00029466,5]
[392650069,1761774054674,-231.09215965,0.00029869,2]
[392650070,1761774054702,-500.0,0.00029873,5]
[392650071,1761774054729,-500.0,0.00029873,5]
[392650072,1761774054757,-500.0,0.00029873,5]
[392650073,1761774057316,-446.55072751,0.00029873,5]
[392650074,1761774057345,-500.0,0.00029873,5]
[392650075,1761774057373,-500.0,0.00029873,5]
[392650076,1761774057401,-500.0,0.00029873,5]
[392650077,1761774057429,-500.0,0.00029873,5]
[392650078,1761774057456,-500.0,0.00029873,5]
[392650079,1761774057484,-500.0,0.00029873,5]
[392650080,1761774057514,-308.11777333,0.00029898,2]
[392650081,1761774057542,-440.88944598,0.00029898,2]
[392650082,1761774057569,-152.0,0.00029898,2]
[392650083,1761774057596,-300.0,0.00029898,2]
[392650084,1761774062197,300.0,0.00029898,2]
[392650085,1761774066300,404.89410636,0.00029898,2]
[392650086,1761774066326,95.10589364,0.00029898,2]
[392650087,1761774066355,231.44403707,0.00029898,2]
[392650088,1761774066385,331.92072458,0.00029898,2]
[392650089,1761774066415,500.0,0.00029898,2]
[392650090,1761774066447,500.0,0.00029898,2]
[392650091,1761774066479,300.0,0.00029898,2]
[392650092,1761774074176,150.0,0.0002697,30]
[392650093,1761774075081,150.0,0.00029421,30]
[392650094,1761774079239,500.0,0.00029898,2]
[392650095,1761774079291,500.0,0.00029898,2]
[392650096,1761774079348,500.0,0.00029898,2]
[392650097,1761774079402,300.0,0.00029898,2]
[392650098,1761774085749,151.0,0.00029466,5]
[392650099,1761774103779,292.962,0.00027727,17]
[392650100,1761774103808,185.256,0.00027727,17]
[392650101,1761774104871,1480.88703596,0.00029899,2]
[392650102,1761774108703,162.92840669,0.000298,2]
[392650103,1761774122196,300.0,0.00029898,2]
[392650104,1761774127710,3368.50590206,0.00029899,2]
[392650105,1761774127741,167.14715021,0.00029899,2]
[392650106,1761774150071,-200.0,0.00028967,15]
[392650107,1761774152972,-150.0,0.00026381,30]
[392650108,1761774153094,-150.0,0.00028779,30]
[392650109,1761774153103,-2641.32350508,0.000299,2]
[392650110,1761774155962,-500.0,0.00029873,5]
[392650111,1761774155989,-240.98804048,0.000299,2]
[392650112,1761774156023,-8518.03391904,0.000299,2]
[392650117,1761774257953,500.0,0.00029988,120]
[392650118,1761774258190,500.0,0.00029988,120]
[392650119,1761774258469,500.0,0.00029988,120]
[392650120,1761774258712,500.0,0.00029989,120]
[392650121,1761774258954,500.0,0.00029989,120]
[392650122,1761774259204,500.0,0.00029989,120]
[392650123,1761774259455,500.0,0.00029989,120]
[392650124,1761774259866,500.0,0.00029989,120]
[392650125,1761774260214,608.37,0.00029989,120]
[392650130,1761774357101,-500.0,0.000253,2]
[392650131,1761774357121,-157.89031966,0.0002589,2]
[392650132,1761774357145,-150.0,0.00026337,30]
[392650133,1761774357166,-206.857203,0.00027833,60]
[392650134,1761774357188,-186.3105772,0.0002789,2]
[392650135,1761774357213,-150.0,0.00028731,30]
[392650136,1761774357235,-161.84557954,0.00029873,2]
[392650137,1761774357256,-214.73083474,0.0002989,2]
[392650138,1761774357276,-742.80621648,0.0002989,2]
[392650144,1761774424387,500.0,0.00029988,120]
[392650146,1761774435077,-150.0,0.00026404,30]
[392650147,1761774435101,-150.0,0.00028805,30]
[392650148,1761774435122,-65.82152466,0.0002989,2]
[392650150,1761774448098,-467.39948719,0.0002989,2]
[392650151,1761774448118,-82.52160726,0.00029899,2]
[392650159,1761774554119,-155.61059628,0.00025749,2]
[392650160,1761774554141,-150.0,0.00026292,30]
[392650161,1761774554161,-183.62050361,0.00027749,2]
[392650162,1761774554180,-211.63041094,0.00029749,2]
[392650163,1761774554198,-175.79457798,0.00029871,2]
[392650164,1761774554217,-1200.0,0.00029899,2]
[392650165,1761774554236,-244.0,0.00029899,2]
[392650166,1761774554255,-1089.71618617,0.000299,2]
[392650167,1761774565204,-5289.18618067,0.000299,2]
[392650170,1761774601212,150.0,0.00026296,30]
[392650216,1761774631731,-895.7277321,0.0002997,2]
[392650218,1761774631743,-412.973,0.0002997,2]
[392650220,1761774631754,-2000.48799593,0.0002997,2]
[392650225,1761774631787,-4800.86544117,0.0002997,2]
[392650227,1761774631799,-1728.67889568,0.0002997,2]
[392650448,1761774637801,-175.79457795,0.0002987,2]
[392650449,1761774637811,-1009.20542205,0.0002997,2]
[392650450,1761774637822,-27874.99999999,0.0002997,2]
[392650451,1761774637833,-978.88384062,0.0002997,2]
[392650468,1761774640044,-0.01994592,0.0002997,2]
[392650496,1761774642856,-10298.15772654,0.0002997,2]
[392650497,1761774642867,-354.1,0.0002997,10]
[392650498,1761774642878,-295.08,0.0002997,10]
[392650499,1761774642887,-245.9,0.0002997,10]
[392650500,1761774642896,-151.0,0.00029972,2]
[392650501,1761774642906,-151.0,0.00029972,2]
[392650502,1761774642915,-151.0,0.00029972,2]
[392650503,1761774642924,-151.0,0.00029972,2]
[392650504,1761774642934,-151.0,0.00029972,2]
[392650505,1761774642943,-151.0,0.00029972,2]
[392650506,1761774642951,-151.0,0.00029972,2]
[392650507,1761774642962,-49.76227343,0.00029972,2]
[392650527,1761774684713,-1020.82178268,0.0002988,2]
[392650528,1761774684747,-2484.43691384,0.0002989,2]
[392650529,1761774684784,-2989.49260696,0.0002989,2]
[392650530,1761774684973,-500.0,0.00029969,2]
[392650531,1761774685004,-500.0,0.00029969,2]
[392650532,1761774685035,-500.0,0.00029969,2]
[392650533,1761774685068,-408.75819724,0.00029969,2]
[392650534,1761774685101,-500.0,0.00029969,2]
[392650535,1761774685132,-500.0,0.00029969,2]
[392650536,1761774685162,-500.0,0.00029969,2]
[392650537,1761774685192,-500.0,0.00029969,2]
[392650538,1761774685222,-500.0,0.00029969,2]
[392650539,1761774685252,-500.0,0.00029969,2]
[392650540,1761774685352,-500.0,0.00029969,2]
[392650541,1761774685383,-500.0,0.00029969,2]
[392650542,1761774685416,-500.0,0.00029969,2]
[392650543,1761774685446,-439.82143762,0.00029969,2]
[392650544,1761774685616,-312.57,0.0002997,3]
[392650545,1761774685646,-423.82,0.0002997,10]
[392650546,1761774685674,-156.28,0.0002997,3]
[392650547,1761774685702,-353.18,0.0002997,10]
[392650548,1761774685731,-468.87,0.0002997,3]
[392650549,1761774685759,-101.23772657,0.00029972,2]
[392650550,1761774685790,-151.0,0.00029972,2]
[392650551,1761774685820,-151.0,0.00029972,2]
[392650552,1761774685849,-151.0,0.00029972,2]
[392650553,1761774685876,-151.0,0.00029972,2]
[392650554,1761774685904,-151.0,0.00029972,2]
[392650555,1761774685932,-151.0,0.00029972,2]
[392650556,1761774685964,-151.0,0.00029972,2]
[392650557,1761774685995,-151.0,0.00029972,2]
[392650558,1761774686119,-151.0,0.00029972,2]
[392650559,1761774686148,-151.0,0.00029972,2]
[392650560,1761774686179,-151.0,0.00029972,2]
[392650561,1761774686210,-151.0,0.00029972,2]
[392650562,1761774686240,-173.50207229,0.00029979,2]
[392650563,1761774686270,-500.0,0.00029979,2]
[392650564,1761774686301,-500.0,0.00029979,2]
[392650565,1761774686330,-500.0,0.00029979,2]
[392650566,1761774686359,-500.0,0.00029979,2]
[392650567,1761774686387,-500.0,0.00029979,2]
[392650568,1761774686421,-500.0,0.00029979,2]
[392650569,1761774686448,-500.0,0.00029979,2]
[392650570,1761774686477,-500.0,0.00029979,2]
[392650571,1761774686508,-121.02092008,0.00029979,2]
[392650572,1761774686608,-294.32,0.0002997,10]
[392650573,1761774686638,-202.96401526,0.00029979,2]
[392650574,1761774686669,-500.0,0.00029979,2]
[392650575,1761774686701,-376.78945474,0.00029979,2]
[392650576,1761774686732,-1999.0,0.0002998,2]
[392650577,1761774687517,-498.5192924,0.0002998,2]
[392650578,1761774687532,-3253.86306,0.0002998,2]
[392650579,1761774687546,-10000.01,0.0002998,2]
[392650580,1761774687616,-10000.01,0.0002998,2]
[392650581,1761774687776,-10000.01,0.0002998,2]
[392650582,1761774687891,-10000.01,0.0002998,2]
[392650583,1761774688021,-10000.01,0.0002998,2]
[392650584,1761774693680,-217.12319618,0.00029973,5]
[392650585,1761774693720,-9565.76360764,0.0002998,2]
[392650586,1761774693896,-10000.01,0.0002998,2]
[392650587,1761774694019,-10000.01,0.0002998,2]
[392650588,1761774694163,-10000.01,0.0002998,2]
[392650589,1761774694307,-10000.01,0.0002998,2]
[392650590,1761774694427,-10000.01,0.0002998,2]
[392650591,1761774703746,4504.76068317,0.00024953,5]
[392650592,1761774705314,-212.7198066,0.00024953,5]
[392650593,1761774707999,-172.81061943,0.00024953,5]
[392650595,1761774711715,-109.7088908,0.00024953,5]
[392650596,1761774711745,-234.369,0.0002998,24]
[392650597,1761774711773,-204.39,0.0002998,10]
[392650598,1761774711882,-281.53042606,0.00024703,5]
[392650599,1761774711893,-8621.54379234,0.0002998,2]
[392650600,1761774714888,-3660.94655738,0.0002998,2]
[392650601,1761774714912,-2678.11688524,0.0002998,2]
[392650602,1761774720832,-211.2,0.0002998,10]
[392650603,1761774720872,-9577.61,0.0002998,2]
[392650604,1761774730502,-336.39839365,0.00024953,5]
[392650605,1761774733114,-196.0,0.00024953,5]
[392650606,1761774750429,-380.71823815,0.00024456,2]
[392650607,1761774752585,-95.25610993,0.00024456,2]
[392650608,1761774752608,-144.73141119,0.00024703,2]
[392650609,1761774753669,500.0,0.0002997,120]
[392650610,1761774753910,500.0,0.0002997,120]
[392650611,1761774754156,500.0,0.00029971,120]
[392650612,1761774754405,500.0,0.00029989,120]
[392650613,1761774754645,165.01,0.00029989,120]
[392650614,1761774754896,-387.66698246,0.00024703,2]
[392650615,1761774754921,-26.74026587,0.00024953,5]
[392650616,1761774757086,-154.6556632,0.00024953,5]
[392650617,1761774758886,-186.54607078,0.00024953,5]
[392650618,1761774763064,-223.5139117,0.00024703,2]
[392650619,1761774764855,-265.9360461,0.00024703,2]
[392650620,1761774767188,-215.53506521,0.00024703,2]
[392650621,1761774769386,-271.12336766,0.00024703,2]
[392650622,1761774771361,-164.99838509,0.00024703,2]
[392650623,1761774773590,-48.66189504,0.00024703,2]
[392650624,1761774773614,-114.85832986,0.00024953,5]
[392650625,1761774776037,-271.08879274,0.00024953,5]
[392650628,1761774778403,-3713.7124839,0.00024953,5]
[392650630,1761774778435,-150.0,0.00026238,30]
[392650631,1761774778467,-205.79867159,0.000298,2]
[392650632,1761774778494,-500.0,0.00029973,5]
[392650633,1761774778522,-360.98768902,0.00029973,5]
[392650634,1761774778606,-139.01231098,0.00029973,5]
[392650638,1761774781273,-300.0,0.00029979,2]
[392650639,1761774781303,-1200.0,0.00029979,2]
[392650640,1761774781336,-176.0,0.0002998,10]
[392650641,1761774781364,-880.01,0.0002998,10]
[392650642,1761774781392,-761.3087429,0.0002998,2]
[392650643,1761774781475,-3365.3725142,0.0002998,2]
[392650644,1761774787331,-1762.26186418,0.00024953,5]
[392650645,1761774787362,-152.59875458,0.0002989,2]
[392650646,1761774787392,-300.0,0.00029979,2]
[392650647,1761774787422,-974.7229944,0.00029988,2]
[392650648,1761774794348,168.956402,0.00029988,2]
[392650655,1761774811312,-158.501061,0.00024953,2]
[392650656,1761774813825,-315.91786368,0.00024703,2]
[392650657,1761774816177,-198.25850035,0.00024703,2]
[392650658,1761774819907,-164.77441272,0.00024703,2]
[392650659,1761774821750,-310.92562351,0.00024703,2]
[392650660,1761774824835,-275.70848873,0.00024703,2]
[392650661,1761774827154,-204.0,0.00024703,2]
[392650662,1761774829364,-159.66295323,0.00024703,2]
[392650663,1761774831042,-3370.75215778,0.00024703,2]
[392650664,1761774831108,-3089.54928244,0.00024953,2]
[392650665,1761774831481,-202.47780931,0.00024953,2]
[392650666,1761774833809,-223.0003641,0.00024703,5]
[392650667,1761774835496,-172.05713814,0.00024703,5]
[392650668,1761774837959,-404.82508367,0.00024703,5]
[392650669,1761774839727,-987.86631731,0.00024703,5]
[392650670,1761774839755,-1549.47184725,0.00024953,2]
[392650671,1761774839786,-150.0,0.0002586,30]
[392650672,1761774839814,-196.55460126,0.0002589,2]
[392650673,1761774839841,-231.93442949,0.0002789,2]
[392650674,1761774839873,-150.0,0.00028211,30]
[392650675,1761774839901,-267.31425772,0.0002989,2]
[392650676,1761774841843,1002.36039522,0.0002998,2]
[392650677,1761774842255,151.0,0.00029979,2]
[392650678,1761774851049,1780.36669872,0.0002998,2]
[392650679,1761774851084,3219.63330128,0.0002998,2]
[392650680,1761774859070,5000.0,0.0002998,2]
[392650682,1761774885918,-195.27481364,0.00024703,2]
[392650683,1761774889695,-183.46693848,0.00024703,2]
[392650684,1761774892572,195.27481364,0.00024703,2]
[392650685,1761774893786,-159.26559248,0.00024703,2]
[392650686,1761774896889,-185.41316425,0.00024703,2]
[392650687,1761774898604,-266.51891225,0.00024703,2]
[392650688,1761774901809,-201.73371903,0.00024703,2]
[392650689,1761774904763,-201.99864785,0.00024703,2]
[392650690,1761774906427,-289.79061869,0.00024703,2]
[392650691,1761774909239,-247.08833803,0.00024703,2]
[392650692,1761774911359,-160.8061592,0.00024703,2]
[392650693,1761774914838,-351.56629634,0.00024703,2]
[392650694,1761774915605,949.86276681,0.00024703,2]
[392650695,1761774916890,-154.64246532,0.00024703,2]
[392650696,1761774919118,-177.76610083,0.00024703,2]
[392650697,1761774922577,-214.37675092,0.00024703,2]
[392650698,1761774925121,300.0,0.000247,2]
[392650699,1761774926977,-268.99910647,0.00024703,2]
[392650700,1761774929696,-346.4762763,0.00024703,2]
[392650701,1761774933755,-182.77241854,0.00024703,2]
[392650702,1761774935425,300.0,0.000247,2]
[392650703,1761774936098,-431.90846579,0.00024703,2]
[392650704,1761774939607,-194.17091369,0.00024703,2]
[392650705,1761774939750,662.59452383,0.00024703,2]
[392650706,1761774945821,300.0,0.000247,2]
[392650707,1761774957727,300.0,0.000247,2]
[392650708,1761774960137,150.00000066,0.00029971,120]